Cogmind - Beta 15 @@@ ROGUE MODE // 2025.05.15 @ 15:40:47 Player: Ev Result: Destroyed by as-94818 with Assembled Maul Performance ------------- Evolutions (0) 0 Regions Visited (2) 400 Robots Destroyed (8) 40 Value Destroyed (174) 174 Prototype IDs (0) 0 Alien Tech Used (0) 0 Bonus (0) 0 TOTAL SCORE: 614 Bonus ------- None Cogmind --------- Core Integrity 0/250 Matter 300/300 Energy 100/100 System Corruption 0% Temperature Cool (0) Movement Core (50) Location -10/Mines Parts ------- > --- POWER (1) -------- (None) > --- PROPULSION (2) --- (None) > --- UTILITY (2) ------ (None) > --- WEAPON (2) ------- (None) > --- INVENTORY (5) ---- Light Ion Engine Flight Unit Small Storage Unit Light Assault Rifle Mining Laser Peak State ------------ > --- POWER ------------ Ion Engine > --- PROPULSION ------- Aluminum Leg Aluminum Leg > --- UTILITY ---------- Small Storage Unit Visual Processing Unit > --- WEAPON ----------- Light Assault Rifle Light Assault Rifle > --- INVENTORY -------- Ion Engine Light Treads Assault Rifle [Rating: 8] Favorites ----------- Power Ion Engine Engine Ion Engine Propulsion Aluminum Leg Leg Aluminum Leg Flight Unit Flight Unit Utility Visual Processing Unit Storage Small Storage Unit Processor Visual Processing Unit Weapon Light Assault Rifle Ballistic Gun Light Assault Rifle Build | -11 -10 -10 ------- Run | Yrd Mat Min Slots Evolved . | . . . Power . | . . . Propulsion . | . . . Utility . | . . . Weapon . | . . . Parts Attached 13 | 6 7 . Power 2 | 1 1 . Engine 2 | 1 1 . Core . | . . . Reactor . | . . . Propulsion 5 | 2 3 . Treads . | . . . Leg 2 | 2 . . Wheel . | . . . Hover . | . . . Flight 3 | . 3 . Utility 2 | 1 1 . Device . | . . . Storage 1 | 1 . . Processor 1 | . 1 . Hackware . | . . . Protection . | . . . Artifact . | . . . Weapon 4 | 2 2 . Energy Gun . | . . . Energy Cannon . | . . . Ballistic Gun 4 | 2 2 . Ballistic Cannon . | . . . Launcher . | . . . Special Weapon . | . . . Impact Weapon . | . . . Slashing Weapon . | . . . Piercing Weapon . | . . . Special Melee Weapon . | . . . Unidentified Prototypes . | . . . Parts Lost . | . . . Power . | . . . Propulsion . | . . . Utility . | . . . Weapon . | . . . Highest Loss Streak . | . . . To Critical Strikes . | . . . Average Backups 4 | 1 4 5 Power . | . 1 1 Propulsion 1 | . 1 1 Utility . | . . 1 Weapon 1 | . 1 2 Tool/Special . | . . . Unused Backups 8 | . 6 2 Power 2 | . 1 1 Propulsion 3 | . 3 . Utility 1 | . 1 . Weapon 2 | . 1 1 Tool/Special . | . . . Average Slot Usage (%) 88 | . 93 74 Engine 13 | . 14 12 Leg 16 | . 21 . Flight 10 | . 7 24 Storage 8 | . 10 . Processor 11 | . 11 12 Ballistic Gun 27 | . 28 24 Peak Build Rating 8 | 6 8 7 Average Rating 6 | 4 7 5 On Entrance 4 | . 6 7 Naked Turns 11 | . . 11 Heaviest Build 12 | 12 12 5 Greatest Support 20 | 20 20 8 Greatest Overweight (x) 2 | . 2 . Average Overweight (x) . | . . . Largest Inventory Capacity 8 | 8 8 5 Average Capacity 6 | 7 7 5 Most Carried 8 | 3 8 5 Average Carried 4 | 2 4 4 Final Capacity 8 | 8 5 5 Final Carried 5 | 3 5 5 Class Distribution -------------------- 71% | Mutant 28% | Scavenger-Mutant Dominant Class ---------------- Mutant | -10/Materials Scavenger-Mutant | -10/Mines Resources | -11 -10 -10 ----------- Run | Yrd Mat Min Matter Collected 408 | 234 162 12 Remotely . | . . . Salvage Created 247 | . 247 . Parts 18 | . 18 . Haulers Intercepted 1 | . 1 . Recyclers Shooed . | . . . Parts Field Recycled . | . . . Retrieved Matter . | . . . Parts Self-Destructed . | . . . Prevented . | . . . Kills | -11 -10 -10 ------- Run | Yrd Mat Min Combat Hostiles Destroyed 6 | . 6 . Guns 6 | . 6 . Classes Destroyed 4 | . 4 . Hauler 1 | . 1 . Watcher 1 | . 1 . Swarmer 2 | . 2 . Grunt 4 | . 4 . Best Kill Streak 4 | . 4 . Combat Bots Only 4 | . 4 . Max Kills in Single Turn 2 | . 2 . Gunslinging 1 | . 1 . Exploded . | . . . Melee . | . . . Uniques/NPCs Destroyed . | . . . Combat | -11 -10 -10 -------- Run | Yrd Mat Min Hostile Shots Fired 70 | . 60 10 Missed 25 | . 25 . Hits 45 | . 35 10 Melee 2 | . . 2 Projectile 43 | . 35 8 Damage Taken 482 | . 331 151 Core 251 | . 100 151 Absorbed by Shields . | . . . Core Remaining (%) 100 | 100 . . Volleys Fired 39 | . 39 . Largest 2 | . 2 . Hottest 40 | . 40 . Shots Fired 78 | . 78 . Gun 78 | . 78 . Cannon . | . . . Launcher . | . . . Special . | . . . Kinetic 78 | . 78 . Thermal . | . . . Explosive . | . . . Electromagnetic . | . . . Robot Hit Streak 17 | . 17 . Robot Miss Streak 4 | . 4 . Penetration Max . | . . . Secondary Targets 2 | . 2 . Max Gunslinging Chain 1 | . 1 . Shots Hit Robots 53 | . 53 . Core Hits 17 | . 17 . Critical Kills . | . . . Critical Parts Destroyed . | . . . Critical Strikes . | . . . Melee Attacks . | . . . Impact . | . . . Slashing . | . . . Piercing . | . . . Sneak Attacks . | . . . Combat Hostiles . | . . . Follow-up Attacks . | . . . Damage Inflicted 432 | . 432 . Guns 432 | . 432 . Cannons . | . . . Explosions . | . . . Melee . | . . . Ramming . | . . . Kinetic 432 | . 432 . Thermal . | . . . Explosive . | . . . Electromagnetic . | . . . Impact . | . . . Slashing . | . . . Piercing . | . . . Highest Corruption . | . . . Average Corruption . | . . . Corruption Purged . | . . . Corruption Blocked . | . . . Overload Shots . | . . . Overflow Damage . | . . . Projectiles . | . . . Explosions . | . . . Melee . | . . . Knockbacks . | . . . Impact . | . . . Kinetic . | . . . Secondary . | . . . Self-Inflicted Damage . | . . . Shots . | . . . Rammed . | . . . Targets Rammed . | . . . Kicked . | . . . Crushed . | . . . Highest Temperature 20 | . 20 15 Average Temperature 7 | . 6 15 Received Heat Transfer 174 | . 114 60 Siege Activations . | . . . Martial Activations . | . . . Shielding Activations . | . . . Robots Disrupted . | . . . Combat Hostiles . | . . . Robots Corrupted . | . . . Combat Hostiles . | . . . Parts Fried . | . . . Impact Corruptions . | . . . Robots Melted . | . . . Combat Hostiles . | . . . Parts Melted . | . . . Heat Transferred . | . . . Parts Sabotaged . | . . . Parts Stolen . | . . . Parts Stripped . | . . . Power Chain Reactions . | . . . Alert | -11 -10 -10 ------- Run | Yrd Mat Min Maximum Alert Level . | . . . Low Security (%) 100 | 100 100 100 Level 1 . | . . . Level 2 . | . . . Level 3 . | . . . Level 4 . | . . . Level 5 . | . . . High Security . | . . . Max Security . | . . . Peak Influence 90 | . 90 22 Initial 22 | . . 22 Average 23 | . 33 9 Influence Increases 174 | . 174 . Destroy 0b10 Robot/C 120 | . 120 . Destroy 0b10 Robot/NC 10 | . 10 . Destroy Leader 14 | . 14 . Select Force Hacks 30 | . 30 . Influence Decreases 174 | . 117 57 Entered New Map 35 | . . 35 Time Decay 139 | . 117 22 Squads Dispatched 2 | . 2 . Investigation 1 | . 1 . Extermination . | . . . Reinforcement 1 | . 1 . Assault . | . . . Garrison . | . . . Intercept . | . . . Searches Triggered . | . . . Construction Impeded . | . . . Haulers Reinforced . | . . . Active Scanning Responses . | . . . Cargo Convoy Interrupts . | . . . Stealth | -11 -10 -10 --------- Run | Yrd Mat Min Distress Signals 3 | . 3 . Communications Jammed . | . . . Distress Signals . | . . . Times Spotted 30 | . 14 16 Peak Tracking Total 17 | . 7 17 Tactical Retreats 1 | . . 1 Traps | -11 -10 -10 ------- Run | Yrd Mat Min Traps Triggered . | . . . Indirectly . | . . . Trap Hack Attempts . | . . . Triggered . | . . . Disarmed . | . . . Reprogrammed . | . . . Reused . | . . . Traps Extracted . | . . . Installed . | . . . Triggered . | . . . Machines | -11 -10 -10 ---------- Run | Yrd Mat Min Machines Disabled . | . . . Max in Single Turn . | . . . Machines Repaired . | . . . Machines Dismantled . | . . . Machines Sabotaged . | . . . Overloaded Fab Kills . | . . . Hacking | -11 -10 -10 --------- Run | Yrd Mat Min Machines Accessed 1 | . 1 . Terminals . | . . . Fabricators . | . . . Repair Stations . | . . . Recycling Units 1 | . 1 . Scanalyzers . | . . . Garrison Access . | . . . Total Hacks 2 | . 2 . Successful 1 | . 1 . Failed 1 | . 1 . Catastrophic . | . . . Database Lockouts . | . . . Manual 2 | . 2 . Terminals . | . . . Fabricators . | . . . Repair Stations . | . . . Recycling Units 2 | . 2 . Scanalyzers . | . . . Garrison Access . | . . . Terminal Hacks . | . . . Fabricator Hacks . | . . . Repair Station Hacks . | . . . Recycling Unit Hacks . | . . . Scanalyzer . | . . . Garrison Access Hacks . | . . . Unauthorized Hacks 1 | . 1 . Terminals . | . . . Fabricators . | . . . Repair Stations . | . . . Recycling Units 1 | . 1 . Tunnel 1 | . 1 . Scanalyzers . | . . . Garrison Access . | . . . Data Cores Recovered . | . . . Used . | . . . Hacking Detections . | . . . Full Trace Events . | . . . Feedback Events . | . . . Feedback Blocked . | . . . Robot Schematics Acquired . | . . . Robots Built . | . . . Authchips . | . . . Time . | . . . Total Robot Build Rating . | . . . Part Schematics Acquired . | . . . Parts Built . | . . . Authchips . | . . . Time . | . . . Total Part Build Rating . | . . . Parts Repaired . | . . . Time . | . . . Parts Recycled . | . . . Recycled Matter . | . . . Retrieved Matter . | . . . Retrieved Components . | . . . Parts Scanalyzed . | . . . Part Schematics Acquired . | . . . Parts Damaged . | . . . Bothacking | -11 -10 -10 ------------ Run | Yrd Mat Min Used RIF Installer . | . . . Robots Hacked . | . . . Non-combat . | . . . Combat . | . . . Robot Hacks Applied . | . . . Relay Couplers Released . | . . . Fabnet Peak Effective % . | . . . Robots Rewired . | . . . Allies Hacked . | . . . Hacks Repelled . | . . . Allies | -11 -10 -10 -------- Run | Yrd Mat Min Total Allies 3 | . . 3 Largest Group 3 | . . 3 Highest-Rated Group 40 | . . 40 Highest-Rated Ally 16 | . . 16 Total Orders . | . . . Ally Attacks . | . . . Total Damage . | . . . Kills . | . . . Allies Corrupted . | . . . Allies Melted . | . . . Intel | -11 -10 -10 ------- Run | Yrd Mat Min Active Infowar (turns) 280 | . 220 60 Optics 280 | . 220 60 Robot Analysis Total . | . . . Derelict Logs Recovered 1 | . . 1 Drone Launches . | . . . Drone Recoveries . | . . . Exploration | -11 -10 -10 ------------- Run | Yrd Mat Min Turns Passed 413 | 70 271 72 Spaces Moved 334 | 39 158 137 Core 9 | 4 . 5 Treads . | . . . Legs 118 | 35 83 . Wheels . | . . . Hover . | . . . Flight 207 | . 75 132 Fastest Speed 37 | 50 37 37 Average Speed 67 | 112 81 37 Slowest Speed 210 | 120 210 50 Overloaded Moves . | . . . Propulsion Burnouts . | . . . Robots Hopped . | . . . Potential Cave-ins . | . . . Cave-ins Triggered . | . . . Exploration Rate (%) 23 | 4 26 39 Regions Visited 2 Branch Regions 1 Pre-discovered Areas 1 | . 1 . Known Exits Taken . | . . . Unknown Exits Taken 2 | 1 1 . Scrap Searched 1 | . . 1 Spaces Dug . | . . . Terrain Destroyed . | . . . Melee . | . . . Projectile . | . . . AOE . | . . . Terrain Rammed . | . . . Walls Destroyed . | . . . Machines Disabled . | . . . Actions | -11 -10 -10 --------- Run | Yrd Mat Min Total 463 | 65 237 161 Wait 41 | 12 13 16 Move 332 | 38 157 137 Hop . | . . . Pick Up 23 | 9 13 1 Fast Attach . | . . . Attach 7 | 6 1 . Detach . | . . . Swap 6 | . 6 . Drop 15 | . 8 7 Fire 39 | . 39 . Melee . | . . . Ram . | . . . Kick . | . . . Crush . | . . . Escape Stasis . | . . . Rewire . | . . . Trap . | . . . Miscellaneous . | . . . Route ------- -11/Scrapyard -10/Materials -10/Mines History --------- Turn | Location | Event 34 | -11/Scrapyard | Discovered new exit (range 15) 71 | -11/Scrapyard | Entered Materials 320 | -10/Materials | Discovered new exit (range 11) 342 | -10/Materials | Entered Mines 349 | -10/Mines | Met a Derelict bent on vengeance 357 | -10/Mines | Assisted by bots powering up and referring to "LRC-V3" 382 | -10/Mines | Learned Materials garrison access intel 387 | -10/Mines | Assembled infested the area 410 | -10/Mines | Core integrity fell below 50% 412 | -10/Mines | Core integrity fell below 20% 414 | -10/Mines | Destroyed by as-94818 with Assembled Maul Last Messages --------------- 00343_ K-01 Serf collects debris. 00357_ Trooper 1a: "Hello LRC-V3. What is your command?" 00357_ Mercenary 1a: "Hello LRC-V3. What is your command?" 00357_ Trooper 1b: "Hello LRC-V3. What is your command?" 00382_ Searching scrap... 00382_ Found Hover Unit. 00382_ Found Lgt. Assault Rifle. 00382_ Found 48 Matter. 00382_ Acquired derelict log, extracted data. Data stored: Materials garrison access intel. 00383_ Dropped Lgt. Assault Rifle. 00384_ Acquired Lgt. Assault Rifle. 00385_ Acquired 12 matter. 00387_ ALERT: Infestation in the mines, dispatching Demolisher response squad. 00401_ Dropped Lgt. Assault Rifle. 00402_ Discarded Visual Processing Unit. 00402_ Dropped Flight Unit. 00403_ Dropped Lgt. Ion Engine. 00413_ R-06 Scavenger destroyed. Map ----- +----------------------------------------------------+ | ??????????????????# ########## | | ?????????????????????????????????# | | ?????????????????????????????????## | | ??????????????????????????????????# | | ??????????????????????????????????# | | ??????????????????????????????????## | | ???????????????????????????????????## | | ????????????????????????????????????## | | ????????????????????????????????????## | | ???????????????????????????????????## | | ??????????????????????????????????## | | ??????????????????????????????????# | | ?????????????????????????????????## | | ????????????????????????????????## | | ???????????????????????????????## | | ???????????????????????????????# | | ???????????????????????????????# | | ???????????????????????????????# | | ????????????????####???????????# | | ????????????????? ??????????## | | ?????????????????# #?????????## | | ?????????????????#[########### | | ??????############ % | | ??????# #####=##### ## ## | | ??????# a aa#???# #???# ########? | | ??????# a@a ##### #???# #???????? | | ??????# """ """aa=[t %#???# #???????? | | ??????# """ """a#######???# #???????? | | ??????# """a""" #?????????# #???????? | | ??????# #????????? ???????? | | ??????###### ####????????? ???????? | | ???????????# #???????????? # ???????? | | ???????????# #??????????? #####??????? | | ???????????#a######??????#???????????? | | ???????????# #??????????????????? | | ???????????###### #??????????????????? | | ????????????????# #??????????????????? | | ????????????????# #??????????????????? | | ????????????????# #??????????????????? | | ????????????????# #??????????????????? | | ????????????????# #??????????????????? | | ???????????????? #??????????????????? | | ???????????????? ??????????????????? | | ???????????????? " ??????????????????? | | ???????????????? ??????????????????? | | ???????????????? [??????????????????? | | ????????????????# ??????????????????? | | ?????????????????##??????????????????? | | ?????????????????????????????????????? | | ?????????????????????????????????????? | +----------------------------------------------------+ Best States ------------- Heat Dissipation 25 Energy Generation 10 Energy Capacity 250 Matter Stores 300 Matter Capacity 300 Sight Range 18 Terrain Scan Density 10 Evasion (%) 62 Item Schematics ----------------- None Robot Schematics ------------------ None Fabricated ------------ Nothing Repaired ---------- Nothing Alien Tech Used ----------------- None Achievements -------------- None Challenges ------------ None Game ------ Seed InsulationResetEngine Manual? 0 Play Time 00:07:31 Cumulative 50.0 hours Start 2025.05.15 @ 15:34:04 End 2025.05.15 @ 15:40:47 Sessions 1 Manual Loads 0 Difficulty Rogue Special Mode None Game No. 102 Rogue 102 Adventurer 0 Explorer 0 Win Type - Total 0 Types 0/0/0/0/0/0/0/0/0/0 Lore% 15 Gallery% 28 Achievement% 24 Wizard Run 0 Options --------- Layout 0 ASCII 0 Keyboard 0 Movement Mouse Keybinds 0 Fullscreen 1 Font 24/Smallcaps Map View 76x50 Zoom Use 0% Tactical HUD 1 Map Filters NONE Filters NONE Steam 1 RUN: cb6be99d-4be3-411d-a573-78495cd4c2bb